{"text_format":"1","workbook":"xlsx","n_sheets":10,"sheets":["Start","01_Kapitalbedarf_AV1_A","01_Kapitalbedarf_AV2_A","01_Kapitalbedarf_AV1_L","01_Kapitalbedarf_AV2_L","01_Kapitalbedarf_AV3_A","01_Kapitalbedarf_AV3_L","01_Leasing_A","01_Leasing_L","Blanko1"],"not_rendered":{"charts":0,"images":3,"macros":1,"external_links":0,"defined_names":60,"comments":2,"pivot_tables":0},"unopened":[],"bounds":{"document_bytes":16777216,"sheet_cells":100000,"rows_first":2000,"rows_last":500,"rows_between":2000,"halvings":0,"cell_chars":16384,"cell_head_chars":4096},"cells_cut":0,"cells_raw":0,"read":"whole","date_system":"1900"}

{"sheet":"Start","index":0,"n_rows":21,"n_cols":31,"rows_kept":21,"cut":false,"hidden":false,"merged":[[19,5,19,7],[20,5,20,7]]}
[null,null,null,null,null,null,null,null,null,null,null,null,null,null,null,null,null,null,null,null,null,null,null,null,null,null,null,null,null,0,"Start"]
[null,null,null,null,null,null,null,"Modul 02 : Unternehmensgründung",null,null,null,null,null,null,null,null,null,null,null,null,null,null,null,null,null,null,null,null,null,{"$f":"AD1+1","v":1},"01_Kapitalbedarf_AV1_A"]
[null,null,null,null,null,null,null,null,null,null,null,null,null,null,null,null,null,null,null,null,null,null,null,null,null,null,null,null,null,{"$f":"AD2+1","v":2},"01_Kapitalbedarf_AV2_A"]
[null,null,null,null,null,null,null,null,null,null,null,null,"Zu dieser Datei:",null,null,null,null,null,null,null,null,null,null,null,null,null,null,null,null,3,"01_Kapitalbedarf_AV3_A"]
[null,null,null,null,null,null,null,null,null,null,null,null,null,null,null,null,null,null,null,null,null,null,null,null,null,null,null,null,null,4,"01_Leasing_A"]
[null,null,null,null,null,null,null,null,null,null,null,null,"Dies Datei enthält Übungsaufgaben zu folgenden Themen:"]
[]
[null,null,null,null,null,null,null,null,null,null,null,null,null,"- Ermittlung von Anschaffungskosten (bei Erwerb von Anlagegüter)"]
[null,null,null,null,null,null,null,null,null,null,null,null,null,"- Bewertung von Anlagegütern zum Bilanzstichtag (Jahresabschluss)"]
[]
[null,null,null,null,null,null,null,null,null,null,null,null,null,"- Ermittlung von Herstellungskosten (bei Eigenherstellung von Anlagegütern)"]
[]
[null,null,null,null,null,null,null,null,null,null,null,null,null,"- Finanzierung des Erwerb eines Anlagegutes bei Barkauf, Kreditkauf und"]
[null,null,null,null,null,null,null,null,null,null,null,null,null,"  über Leasing"]
[]
[null,null,null,null,null,null,null,null,null,null,null,null,null,"Bei vollständiger Bearbeitung der Aufgaben kann die jeweilige Musterlösung"]
[null,null,null,null,null,null,null,null,null,null,null,null,null,"eingeblendet werden."]
[]
[]
[null,null,null,null,null,"Tabellen-Auswahl"]
[null,null,null,null,null,0]

{"sheet":"01_Kapitalbedarf_AV1_A","index":1,"n_rows":55,"n_cols":10,"rows_kept":55,"cut":false,"hidden":false,"merged":[[38,3,38,4],[38,6,38,7],[39,3,39,4],[39,6,39,7],[2,2,2,9],[10,2,10,5],[11,2,11,5],[12,2,12,5],[13,2,13,5],[14,2,14,5],[16,2,16,5],[17,2,17,6],[36,6,36,7],[37,3,37,4],[37,6,37,7],[49,6,49,7],[40,3,40,4],[40,6,40,7],[41,3,41,4],[41,6,41,7],[42,3,42,4],[42,6,42,7],[43,3,43,4],[43,6,43,7],[44,6,44,7],[45,3,45,5],[45,6,45,7],[54,6,54,7],[50,3,50,4],[50,6,50,7],[51,3,51,4],[51,6,51,7],[52,3,52,4],[52,6,52,7],[53,3,53,4],[53,6,53,7],[54,3,54,5]]}
[]
[]
[]
[null,null,"Kapitalbedarf Anlagevermögen:"]
[]
[null,null,"1. Ermittlung von Anschaffungskosten: Sachverhalt"]
[null,null,"Der Gründer Max Muster hat am",null,{"$f":"CONCATENATE(\"10. März \" & YEAR(NOW())-1 )","v":"10. März 2020"}," im „Bundling“  eine neue Ladestation für E-Autos sowie"]
[null,null,"eine Klimaanlage für die Werkstatt gekauft."]
[null,null,"Folgende Daten liegen hierzu vor:",null,null,null,null,null,"USt-Satz [%]"]
[null,null,null,null,null,null,null,"netto",19,"brutto"]
[null,null,"Listenpreis der Ladestation (Hardware: 5 AC Ladepunkte)  [EUR]",null,null,null,null,9000,{"$f":"Preis_L_N*USt_Satz1/100","v":1710},{"$f":"Preis_L_N+I11","v":10710}]
[null,null,"Lieferer-Rabatt [%]",null,null,null,5]
[null,null,"Lieferer-Skonto (bei Zahlung innerhalb von 10 Tagen) [%]",null,null,null,2]
[null,null,"Transport- und Versicherungskosten {EUR]",null,null,null,null,800,{"$f":"H14*USt_Satz1/100","v":152},{"$f":"H14+I14","v":952}]
[null,null,"Aufwendungen für Installation am Standort, Test {EUR]",null,null,null,null,3600,{"$f":"H15*USt_Satz1/100","v":684},{"$f":"H15+I15","v":4284}]
[]
[null,null,"Kaufpreis für Klimaanlage (kein Rabatt, nur Skonto)",null,null,null,null,1800,{"$f":"H17*USt_Satz1/100","v":342},{"$f":"Preis_KA_N+I17","v":2142}]
[null,null,"Aufwendungen für Installation der Klimaanlage [EUR]",null,null,null,null,250,{"$f":"H18*USt_Satz1/100","v":47.5},{"$f":"H18+I18","v":297.5}]
[null,null,"Beim Gründungs-Unternehmen angefallene Beschaffungsgemeinkosten [EUR]:",null,null,null,null,null,null,380]
[]
[null,null,"Die Rechnung für die Ladestation und das Klimagerät wurde vom Unternehmer nachfolgend innerhalb der Skontofrist"]
[null,null,"per Banküberweisung bezahlt. Die Rechnungen für die Nebenkosten wurden unmittelbar mit Bankscheck bezahlt."]
[]
[null,null,"Weitere Daten:"]
[null,null,null,"Nutzungsdauer der Ladestation [Jahre]",null,null,6]
[null,null,null,"Nutzungsdauer des Klimagerätes [Jahre]",null,null,10]
[]
[null,null,"2. Ermittlung von Anschaffungskosten: Aufgaben"]
[]
[null,null,"a) Es sind die Anschaffungskosten der oben aufgeführten Anlagegüter zu ermitteln!"]
[null,null,"b) Es ist zu ermitteln, zu welchem Wert die Anlagegüter zum Bilanzstichtag (31.12. d. J.) zu bilanzieren wären!"]
[]
[null,null,"3. Ermittlung von Anschaffungskosten: Ihre Lösung"]
[]
[null,null,"a) Anschaffungskosten der Ladestation gesamt"]
[]
[null,null,"Nr.","  Position",null,"Prozent","Betrag"]
[null,null,1,"  Kaufpreis"]
[null,null,{"$f":"C38+1","v":2}]
[null,null,{"$f":"C39+1","v":3}]
[null,null,4]
[null,null,5]
[null,null,6]
[null,null,7]
[null,null,8]
[null,null,{"$f":"C45+1","v":9},"  = Anschaffungskosten",null,null,2]
[]
[null,null,"b) Anschaffungskosten der Klimaanlage"]
[]
[null,null,"Nr.","  Position",null,"Prozent","Betrag"]
[null,null,1,"  Kaufpreis (netto)"]
[null,null,{"$f":"C51+1","v":2}]
[null,null,{"$f":"C52+1","v":3}]
[null,null,4]
[null,null,5,"= Anschaffungskosten",null,null,2]

{"sheet":"01_Kapitalbedarf_AV2_A","index":2,"n_rows":36,"n_cols":12,"rows_kept":36,"cut":false,"hidden":false,"merged":[[2,2,2,9]]}
[]
[]
[]
[null,null,"Kapitalbedarf Anlagevermögen:"]
[]
[null,null,"Fortsetzung der Aufgabe \"Anschaffungskosten\":"]
[]
[null,null,"4. Ermittlung des Wertansatzes für die Bilanzierung zum Bilanzstichtag"]
[]
[null,null,"Grundsatz:"]
[null,null,"Anlagegüter sind stets zum Bilanzstichtag zu Anschaffungskosten, vermindert um Abschreibungen, zu aktivieren."]
[null,null,"Ermittlungen:"]
[]
[null,null,"a) Wert der Ladestation zum Bilanzstichtag (31.12. d. J.):"]
[]
[null,null,null,"Ermittelte Anschaffungskosten:",null,null," EUR,"]
[null,null,null,"Anschaffungsmonat:",3]
[null,null,null,"Nutzungsdauer",{"$f":"n_LadeSt","v":6},null,"AHK [EUR]"]
[null,null,null,"Abschreibungsbetrag (lineare Abschreibung) =",null,null,null," =",null,"= ",0," [EUR/a]"]
[null,null,null,null,null,null,"ND [a]"]
[]
[null,null,null,"Monatsgenauer Abschreibungsbetrag im Anschaffungsjahr =",null,null,null,null,null," [EUR/a]"]
[]
[null,null,null,"Bilanzwert \"Ladestation\" zum Bilanzstichtag 31.12. d. J.",null,null,null,null,0," [EUR]"]
[]
[null,null,"a) Wert der Klimaanlage zum Bilanzstichtag (31.12. d. J.):"]
[]
[null,null,null,"Ermittelte Anschaffungskosten:",null,null," [EUR]"]
[null,null,null,"Anschaffungsmonat:",3]
[null,null,null,"Nutzungsdauer",{"$f":"'01_Kapitalbedarf_AV1_A'!G26","v":10}]
[null,null,null,"Abschreibungsbetrag (lineare Abschreibung) =",null,null,null,"= ",0," [EUR/a]"]
[]
[]
[null,null,null,"Monatsgenauer Abschreibungsbetrag im Anschaffungsjahr =",null,null,null,null,null," [EUR/a]"]
[]
[null,null,null,"Bilanzwert \"Klimaanlage\" zum Bilanzstichtag 31.12. d. J.",null,null,null,null,0," [EUR]"]

{"sheet":"01_Kapitalbedarf_AV1_L","index":3,"n_rows":55,"n_cols":10,"rows_kept":55,"cut":false,"hidden":true,"merged":[[54,6,54,7],[54,3,54,5],[52,3,52,4],[52,6,52,7],[53,3,53,4],[53,6,53,7],[51,3,51,4],[51,6,51,7],[41,6,41,7],[42,6,42,7],[44,6,44,7],[45,6,45,7],[45,3,45,5],[41,3,41,4],[42,3,42,4],[43,3,43,4],[43,6,43,7],[40,3,40,4],[17,2,17,6],[49,6,49,7],[50,3,50,4],[50,6,50,7],[36,6,36,7],[2,2,2,9],[37,8,45,10],[50,8,54,10],[10,2,10,5],[13,2,13,5],[11,2,11,5],[12,2,12,5],[16,2,16,5],[14,2,14,5],[37,6,37,7],[38,6,38,7],[39,6,39,7],[40,6,40,7],[37,3,37,4],[38,3,38,4],[39,3,39,4]]}
[]
[]
[]
[null,null,"Kapitalbedarf Anlagevermögen:"]
[]
[null,null,"1. Sachverhalt"]
[null,null,"Der Gründer Max Muster hat am",null,{"$f":"CONCATENATE(\"10. März \" & YEAR(NOW())-1 )","v":"10. März 2020"}," im „Bundling“  eine neue Ladestation für E-Autos sowie"]
[null,null,"eine Klimaanlage für die Werkstatt gekauft."]
[null,null,"Folgende Daten liegen hierzu vor:",null,null,null,null,null,"USt-Satz [%]"]
[null,null,null,null,null,null,null,"netto",19,"brutto"]
[null,null,"Listenpreis der Ladestation (Hardware: 5 AC Ladepunkte)  [EUR]",null,null,null,null,9000,{"$f":"Preis_L_N*USt_Satz/100","v":1710},{"$f":"Preis_L_N+I11","v":10710}]
[null,null,"Lieferer-Rabatt [%]",null,null,null,5]
[null,null,"Lieferer-Skonto (bei Zahlung innerhalb von 10 Tagen) [%]",null,null,null,2]
[null,null,"Transport- und Versicherungskosten {EUR]",null,null,null,null,800,{"$f":"TpVs1*USt_Satz/100","v":152},{"$f":"TpVs1+I14","v":952}]
[null,null,"Aufwendungen für Installation am Standort, Test {EUR]",null,null,null,null,3600,{"$f":"Install1_N2*USt_Satz/100","v":684},{"$f":"Install1_N2+I15","v":4284}]
[]
[null,null,"Kaufpreis für Klimaanlage (kein Rabatt, nur Skonto)",null,null,null,null,1800,{"$f":"Preis_KA_N*USt_Satz/100","v":342},{"$f":"Preis_KA_N+I17","v":2142}]
[null,null,"Aufwendungen für Installation der Klimaanlage [EUR]",null,null,null,null,250,{"$f":"H18*USt_Satz/100","v":47.5},{"$f":"H18+I18","v":297.5}]
[null,null,"Beim Gründungs-Unternehmen angefallene Beschaffungsgemeinkosten [EUR]:",null,null,null,null,null,null,380]
[]
[null,null,"Die Rechnung für die Ladestation und das Klimagerät wurde vom Unternehmer nachfolgend innerhalb der Skontofrist"]
[null,null,"per Banküberweisung bezahlt. Die Rechnungen für die Nebenkosten wurden unmittelbar mit Bankscheck bezahlt."]
[]
[null,null,"Weitere Daten:"]
[null,null,null,"Nutzungsdauer der Ladestation [Jahre]",null,null,6]
[null,null,null,"Nutzungsdauer des Klimagerätes [Jahre]",null,null,10]
[]
[null,null,"2. Aufgaben"]
[]
[null,null,"a) Es sind die Anschaffungskosten der oben aufgeführten Anlagegüter zu ermitteln!"]
[null,null,"b) Es ist zu ermitteln, zu welchem Wert die Anlagegüter zum Bilanzstichtag (31.12. d. J.) zu bilanzieren wären!"]
[]
[null,null,"3. Musterlösung:"]
[]
[null,null,"a) Anschaffungskosten der Ladestation gesamt"]
[]
[null,null,"Nr.","  Position",null,"Prozent","Betrag",null,"   Kommentar:"]
[null,null,1,"  Listenpreis (netto)",null,null,{"$f":"Preis_L_N","v":9000},null,"Ein Vermögensgegenstand (hier ein Anlagegut) ist nur mit dem ihm einzeln zurechen-baren Kosten (netto) zu akti-vieren. Rabatte, Skonti und andere Preisminderungen sind abzusetzen. Allgemeine Be-schaffungskosten sind nicht zurechenbar!"]
[null,null,{"$f":"C38+1","v":2},"  ./. Rabatt",null,{"$f":"L_Rab1","v":5},{"$f":"Preis_L*F39/100","v":450}]
[null,null,{"$f":"C39+1","v":3}," = Zieleinkaufspreis",null,null,{"$f":"Preis_L-G39","v":8550}]
[null,null,4,"  ./. Skonto",null,{"$f":"L_Skonto","v":2},{"$f":"G40*F41/100","v":171}]
[null,null,5,"  = Bareinkaufspreis",null,null,{"$f":"G40-G41","v":8379}]
[null,null,6,"  + Transport- und Versicherungskosten",null,null,{"$f":"TpVs1","v":800}]
[null,null,7,"  + Kosten der Installation, Test",null,null,{"$f":"Install1_N2","v":3600}]
[null,null,8]
[null,null,{"$f":"C45+1","v":9},"  = Anschaffungskosten",null,null,{"$f":"G42+G43+G44","v":12779}]
[]
[null,null,"b) Anschaffungskosten der Klimaanlage"]
[]
[null,null,"Nr.","  Position",null,"Prozent","Betrag",null,"   Kommentar:"]
[null,null,1,"  Kaufpreis (netto)",null,null,{"$f":"Preis_KA_N","v":1800},null,"Die Klimaanlage ist ein selbstän-diger Vermögensgegenstand, der nach dem Grundsatz der Einzelbewertung auch einzeln zu aktivieren ist."]
[null,null,{"$f":"C51+1","v":2},"  ./. Skonto",null,{"$f":"L_Skonto","v":2},{"$f":"G51*F52/100","v":36}]
[null,null,{"$f":"C52+1","v":3}," = Bareinkaufspreis",null,null,{"$f":"G51-G52","v":1764}]
[null,null,4,"+ Installationskosten",null,null,{"$f":"Install_KA2","v":250}]
[null,null,5,"= Anschaffungskosten",null,null,{"$f":"G53+G54","v":2014}]

{"sheet":"01_Kapitalbedarf_AV2_L","index":4,"n_rows":36,"n_cols":12,"rows_kept":36,"cut":false,"hidden":true,"merged":[[2,2,2,9]]}
[]
[]
[]
[null,null,"Kapitalbedarf Anlagevermögen:"]
[]
[]
[null,null,"Fortsetzung der Aufgabe \"Anschaffungskosten\":"]
[null,null,"Ermittlung des Wertansatzes für die Bilanzierung zum Bilanzstichtag"]
[]
[null,null,"Grundsatz:"]
[null,null,"Anlagegüter sind stets zum Bilanzstichtag zu Anschaffungskosten, vermindert um Abschreibungen, zu aktivieren."]
[null,null,"Ermittlungen:"]
[]
[null,null,"a) Wert der Ladestation zum Bilanzstichtag (31.12. d. J.):"]
[]
[null,null,null,"Ermittelte Anschaffungskosten:",null,{"$f":"AnschKo_Lade","v":12779}," EUR,"]
[null,null,null,"Anschaffungsmonat:",3]
[null,null,null,"Nutzungsdauer",{"$f":"n_LadeSt","v":6},null,"AHK [EUR]",null,{"$f":"F16","v":12779}]
[null,null,null,"Abschreibungsbetrag (lineare Abschreibung) =",null,null,null," =",null,"= ",{"$f":"ROUND(I18/I20,0)","v":2130}," [EUR/a]"]
[null,null,null,null,null,null,"ND [a]",null,{"$f":"E18","v":6}]
[]
[null,null,null,"Monatsgenauer Abschreibungsbetrag im Anschaffungsjahr =",null,null,null,null,{"$f":"Q1_Jahr*((13-mL)/12)","v":1775}," [EUR/a]"]
[]
[null,null,null,"Bilanzwert \"Ladestation\" zum Bilanzstichtag 31.12. d. J.",null,null,null,null,{"$f":"I18-I22","v":11004}," [EUR]"]
[]
[null,null,"a) Wert der Klimaanlage zum Bilanzstichtag (31.12. d. J.):"]
[]
[null,null,null,"Ermittelte Anschaffungskosten:",null,{"$f":"AschKo_KA","v":2014}," [EUR]"]
[null,null,null,"Anschaffungsmonat:",3]
[null,null,null,"Nutzungsdauer",{"$f":"n_KA","v":10},null,{"$f":"F28","v":2014}]
[null,null,null,"Abschreibungsbetrag (lineare Abschreibung) =",null,null,null,"= ",{"$f":"ROUND(G30/G32,0)","v":201}," [EUR/a]"]
[null,null,null,null,null,null,{"$f":"E30","v":10}]
[]
[null,null,null,"Monatsgenauer Abschreibungsbetrag im Anschaffungsjahr =",null,null,null,null,{"$f":"ROUND(Q2_Jahr*(13-E29)/12,0)","v":168}," [EUR/a]"]
[]
[null,null,null,"Bilanzwert \"Klimaanlage\" zum Bilanzstichtag 31.12. d. J.",null,null,null,null,{"$f":"F28-I34","v":1846}," [EUR]"]

{"sheet":"01_Kapitalbedarf_AV3_A","index":5,"n_rows":42,"n_cols":5,"rows_kept":42,"cut":false,"hidden":false,"merged":[[2,2,2,6]]}
[]
[]
[]
[null,null,"Kapitalbedarf Anlagevermögen:"]
[]
[null,null,"5. Ermittlung von Herstellungskosten: Sachverhalt"]
[]
[null,null,"Der Unternehmensgründer Max Muster erstellt in Eigenleistung ein spezielles Regal für die"]
[null,null,"Lagerung von Batterien."]
[null,null,"Folgende Angaben liegen hierzu vor:"]
[]
[null,null,"Nr.","Position, Mengeneinheit","Betrag"]
[null,null,1,"aufgewendete Arbeitszeit in der Fertigung [h]",150]
[null,null,{"$f":"C13+1","v":2},"Lohnkostensatz in der Fertigung [EUR/h]",28]
[null,null,3,"Verbrauch an Roh-, Hilfs- und Betriebsstoffen [EUR]",2500]
[null,null,4,"fremdbezogene Zulieferteile [EUR]",800]
[null,null,5,"Zuschlagssatz für Materialgemeinkosten [%]",5]
[null,null,6,"Zuschlagssatz für Fertigungsgemeinkosten [%]",90]
[null,null,7,"Zuschlagssatz für zurechenbare Verwaltungsgemeinkosten [%]",80]
[null,null,8,"Zuschlagssatz für Vertriebsgemeinkosten [%]",10]
[]
[null,null,"6. Herstellungskosten: Aufgaben"]
[]
[null,null,"a) ","Begründen Sie die Aktivierungsfähigkeit des Regals!"]
[null,null,"b)","Ermitteln Sie die aktivierungsfähigen Herstellungskosten!"]
[]
[null,null,"zu a):"]
[]
[]
[]
[]
[]
[]
[]
[null,null,"zu b):"]
[null,null,"1.","Materialeinzelkosten MEK ",0]
[null,null,"2."]
[null,null,"3."]
[null,null,"4."]
[null,null,"5.","= Zwischensumme"]
[null,null,"6."]
[null,null,"7.","= aktivierungspflichtige Herstellungskosten",5]

{"sheet":"01_Kapitalbedarf_AV3_L","index":6,"n_rows":44,"n_cols":5,"rows_kept":44,"cut":false,"hidden":true,"merged":[[2,2,2,6]]}
[]
[]
[]
[null,null,"Kapitalbedarf Anlagevermögen:"]
[]
[null,null,"5. Ermittlung von Herstellungskosten: Sachverhalt"]
[]
[null,null,"Der Unternehmensgründer Max Muster erstellt in Eigenleistung ein spezielles Regal für die"]
[null,null,"Lagerung von Batterien."]
[null,null,"Folgende Angaben liegen hierzu vor:"]
[]
[null,null,"Nr.","Position, Mengeneinheit","Betrag"]
[null,null,1,"aufgewendete Arbeitszeit in der Fertigung [h]",150]
[null,null,{"$f":"C13+1","v":2},"Lohnkostensatz in der Fertigung [EUR/h]",28]
[null,null,3,"Verbrauch an Roh-, Hilfs- und Betriebsstoffen [EUR]",2500]
[null,null,4,"fremdbezogene Zulieferteile [EUR]",800]
[null,null,5,"Zuschlagssatz für Materialgemeinkosten [%]",5]
[null,null,6,"Zuschlagssatz für Fertigungsgemeinkosten [%]",90]
[null,null,7,"Zuschlagssatz für zurechenbare Verwaltungsgemeinkosten [%]",80]
[null,null,8,"Zuschlagssatz für Vertriebsgemeinkosten [%]",10]
[]
[null,null,"6. Herstellungskosten: Aufgaben"]
[]
[null,null,"a) ","Begründung der Aktivierungsfähigkeit des Regals!"]
[null,null,"b)","Ermittlung der aktivierungsfähigen Herstellungskosten"]
[]
[null,null,"zu a):","Bei dem angefertigten Regal handelt es sich um einen abnutzbaren, beweglichen Vermögens-"]
[null,null,null,"gegenstand des Anlagevermögens, der nach § 247 Abs. 2  HGB zu behandeln ist."]
[null,null,null,"Die Aktivierung ist unter Sachanlagen (Position \"Sonstige Betriebsausstattung\") und die "]
[null,null,null,"Zugangsbewertung gem. § 253 Abs. 2 HGB zu Herstellungskosten vorzunehmen."]
[null,null,null,"Grundlage für die Ermittlung der Herstellungskosten bilden die Bestimmungen in"]
[null,null,null,"§ 255 Abs. 2 HGB."]
[]
[null,null,"zu b):"]
[null,null,"1.","Materialeinzelkosten MEK (Pos. 3 und Pos. 4 der Datentabelle)",{"$f":"E15+E16","v":3300}]
[null,null,"2.","  + Materialgemeinkosten (Zuschlagssatz nach Pos. 5, bezogen die MEK)",{"$f":"E35*E17/100","v":165}]
[null,null,"3.","  + Fertigungseinzelkosten FEK (aus Pos. 1 und Pos. 2 der Datentabelle)",{"$f":"E13*E14","v":4200}]
[null,null,"4.","+ Fertigungsgemeinkosten (Zuschlagssatz nach Pos, 6, bezogen auf FEK)",{"$f":"E37*E18/100","v":3780}]
[null,null,"5.","= Zwischensumme",{"$f":"SUM(E35:E38)","v":11445}]
[null,null,"6.","+ Verwaltungsgemeinkosten (Zuschlagssatz nach Pos. 7, bezogen auf die Zwischensumme)",{"$f":"E39*E19/100","v":9156}]
[null,null,"7.","= aktivierungspflichtige Herstellungskosten",{"$f":"E39+E40","v":20601}]
[]
[null,null,"Anmerkung:"]
[null,null,"In die Herstellungskosten dürfen gem. § 255 Abs. 2 HGB    k e i n e   Vertriebsgemeinkosten eingerechnet werden."]

{"sheet":"01_Leasing_A","index":7,"n_rows":44,"n_cols":11,"rows_kept":44,"cut":false,"hidden":false,"merged":[[33,7,34,7],[33,8,34,8],[33,9,34,9],[33,10,34,10],[25,2,25,6],[27,2,27,6],[32,2,34,2],[32,3,32,5],[32,6,32,7],[32,8,32,10],[33,3,34,3],[33,4,34,4],[33,5,34,5],[33,6,34,6],[23,2,23,6],[2,2,2,9],[18,2,18,6],[19,2,19,6],[20,2,20,6],[22,2,22,6]]}
[]
[]
[]
[null,null,"Anlagengüter über Leasing"]
[]
[null,null,"Der Unternehmensgründer Max Muster beabsichtigt, einen neuen Lastkraftwagen "]
[null,null,"zum Aufbau eines Fuhrparks zu beschaffen."]
[null,null,"Der Angebotspreis für den in Betracht gezogenen LKW -Typ beträgt",null,null,null,null,null,144000," EUR  ( = Anschaffungskosten)."]
[null,null,"Der LKW soll",null,6," Jahre genutzt werden."]
[null,null,"Der Unternehmer steht vor der Aufgabe, zu beurteilen, welche betriebswirtschaftlichen  Auswirkungen"]
[]
[null,null,null,"a) der Kauf mit sofortiger Bezahlung aus Eigenmittel (Cash-flow)"]
[null,null,null,"b) der Kauf des LKW mit einem entsprechenden Darlehen (ohne Eigenmittel-Anteil) bzw."]
[null,null,null,"c) ein Leasing dieses Fahrzeuges hat."]
[null,null,"Wichtigstes Beurteilungskriterium sei die kumulierte Liquiditätsbelastung (bzw. der Liquiditätsüberschuss)"]
[null,null,"(ohne Diskontieren)."]
[null,null,"Für die Lösung dieser Aufgabe stehen dem Unternehmer  folgende weitere Daten  zur Verfügung:"]
[]
[null,null,"Kreditsumme",null,null,null,null,{"$f":"AHK_0","v":144000}," EUR"]
[null,null,"Zinssatz der Hausbank ",null,null,null,null,5.5," % p.a."]
[null,null,"Tilgungsart des Darlehens",null,null,null,null,"Ratentilgung"]
[]
[null,null,"Grundmietzeit",null,null,null,null,4," Jahre"]
[null,null,"Abschlussgebühr (bezogen auf die Anschaffungskosten)",null,null,null,null,10.5," %"]
[null,null,"Leasing-Rate pro Monat (bezogen auf die Anschaffungskosten)",null,null,null,null,2.2000000000000002," %"]
[null,null,"Anschlussmiete pro Jahr",null,null,null,null,9600," EUR/a"]
[]
[null,null,"Kalkulierter Nutzen des LKW je Nutzungsjahr",null,null,null,null,32500," EUR/a"]
[]
[null,null,"Bewertungstabelle",null,null,null,null,null,"+ Zeichen = Liquiditätsbelastung (Mittelbedarf)"]
[null,null,"Ihre Lösung:",null,null,null,null,null,"-  Zeichen = Überschuss (freie Mittel)"]
[]
[null,null,"Jahr","Auszahlungen",null,null,"Liquiditätszufluss",null,"Liquiditätsbelastung"]
[null,null,null,"Barkauf","Kreditkauf","Leasing","Einzah-lungen","Abschrei-bungen","Barkauf","Kreditkauf","Leasing"]
[]
[null,null,1]
[null,null,{"$f":"C36+1","v":2}]
[null,null,{"$f":"C37+1","v":3}]
[null,null,{"$f":"C38+1","v":4}]
[null,null,{"$f":"C39+1","v":5}]
[null,null,{"$f":"C40+1","v":6}]
[null,null,"Summe"]
[]
[null,null,"Ihr Kommentar:"]

{"sheet":"01_Leasing_L","index":8,"n_rows":51,"n_cols":11,"rows_kept":51,"cut":false,"hidden":true,"merged":[[32,8,32,10],[33,8,34,8],[33,9,34,9],[33,10,34,10],[23,2,23,6],[25,2,25,6],[27,2,27,6],[32,2,34,2],[33,3,34,3],[33,4,34,4],[33,5,34,5],[32,6,32,7],[33,6,34,6],[33,7,34,7],[32,3,32,5],[2,2,2,9],[18,2,18,6],[19,2,19,6],[20,2,20,6],[22,2,22,6]]}
[]
[]
[]
[null,null,"Anlagengüter über Leasing"]
[]
[null,null,"Der Unternehmensgründer Max Muster beabsichtigt, einen neuen Lastkraftwagen "]
[null,null,"zum Aufbau eines Fuhrparks zu beschaffen."]
[null,null,"Der Angebotspreis für den in Betracht gezogenen LKW -Typ beträgt",null,null,null,null,null,144000," EUR  ( = Anschaffungskosten)."]
[null,null,"Der LKW soll",null,6," Jahre genutzt werden."]
[null,null,"Der Unternehmer steht vor der Aufgabe, zu beurteilen, welche betriebswirtschaftlichen  Auswirkungen"]
[]
[null,null,null,"a) der Kauf mit sofortiger Bezahlung aus Eigenmittel (Cash-flow)"]
[null,null,null,"b) der Kauf des LKW mit einem entsprechenden Darlehen (ohne Eigenmittel-Anteil) bzw."]
[null,null,null,"c) ein Leasing dieses Fahrzeuges hat."]
[null,null,"Wichtigstes Beurteilungskriterium sei die kumulierte Liquiditätsbelastung (bzw. der Liquiditätsüberschuss)"]
[null,null,"(ohne Diskontieren)."]
[null,null,"Für die Lösung dieser Aufgabe stehen dem Unternehmer  folgende weitere Daten  zur Verfügung:"]
[]
[null,null,"Kreditsumme",null,null,null,null,{"$f":"AHK_1","v":144000}," EUR"]
[null,null,"Zinssatz der Hausbank ",null,null,null,null,5.5," % p.a."]
[null,null,"Tilgungsart des Darlehens",null,null,null,null,"Ratentilgung"]
[]
[null,null,"Grundmietzeit",null,null,null,null,4," Jahre"]
[null,null,"Abschlussgebühr (bezogen auf die Anschaffungskosten)",null,null,null,null,10.5," %"]
[null,null,"Leasing-Rate pro Monat (bezogen auf die Anschaffungskosten)",null,null,null,null,2.2000000000000002," %"]
[null,null,"Anschlussmiete pro Jahr",null,null,null,null,9600," EUR/a"]
[]
[null,null,"Kalkulierter Nutzen des LKW je Nutzungsjahr",null,null,null,null,32500," EUR/a"]
[]
[null,null,"Bewertungstabelle",null,null,null,null,null,"+ Zeichen = Liquiditätsbelastung (Mittelbedarf)"]
[null,null,"Musterlösung:",null,null,null,null,null,"-  Zeichen = Überschuss (freie Mittel)"]
[]
[null,null,"Jahr","Auszahlungen",null,null,"Liquiditätszufluss",null,"Liquiditätsbelastung"]
[null,null,null,"Barkauf","Kreditkauf","Leasing","Einzah-lungen","Abschrei-bungen","Barkauf","Kreditkauf","Leasing"]
[]
[null,null,1,{"$f":"Kredit","v":144000},{"$f":"Kredit/Nzeit+Kredit*zins/100","v":31920},{"$f":"(AHK_1*Lrate/100)*12+AHK_1*AbGebuehr/100","v":53136},{"$f":"Nutzen","v":32500},{"$f":"AHK_1/Nzeit","v":24000},{"$f":"D36-G36-H36","v":87500},{"$f":"E36-G36-H36","v":-24580},{"$f":"F36-G36","v":20636}]
[null,null,{"$f":"C36+1","v":2},0,{"$f":"Kredit/Nzeit+(Kredit-Kredit*C36/Nzeit)*zins/100","v":30600},{"$f":"IF(C37<=Mzeit,(AHK_1*Lrate/100)*12,AnschMiete)","v":38016},32500,24000,{"$f":"I36+D37-G37-H37","v":31000},{"$f":"J36+E37-G37-H37","v":-50480},{"$f":"K36+F37-G37","v":26152}]
[null,null,{"$f":"C37+1","v":3},0,{"$f":"Kredit/Nzeit+(Kredit-Kredit*C37/Nzeit)*zins/100","v":29280},{"$f":"IF(C38<=Mzeit,(AHK_1*Lrate/100)*12,AnschMiete)","v":38016},32500,24000,{"$f":"I37+D38-G38-H38","v":-25500},{"$f":"J37+E38-G38-H38","v":-77700},{"$f":"K37+F38-G38","v":31668}]
[null,null,{"$f":"C38+1","v":4},0,{"$f":"Kredit/Nzeit+(Kredit-Kredit*C38/Nzeit)*zins/100","v":27960},{"$f":"IF(C39<=Mzeit,(AHK_1*Lrate/100)*12,AnschMiete)","v":38016},32500,24000,{"$f":"I38+D39-G39-H39","v":-82000},{"$f":"J38+E39-G39-H39","v":-106240},{"$f":"K38+F39-G39","v":37184}]
[null,null,{"$f":"C39+1","v":5},0,{"$f":"Kredit/Nzeit+(Kredit-Kredit*C39/Nzeit)*zins/100","v":26640},{"$f":"IF(C40<=Mzeit,(AHK_1*Lrate/100)*12,AnschMiete)","v":9600},32500,24000,{"$f":"I39+D40-G40-H40","v":-138500},{"$f":"J39+E40-G40-H40","v":-136100},{"$f":"K39+F40-G40","v":14284}]
[null,null,{"$f":"C40+1","v":6},0,{"$f":"Kredit/Nzeit+(Kredit-Kredit*C40/Nzeit)*zins/100","v":25320},{"$f":"IF(C41<=Mzeit,(AHK_1*Lrate/100)*12,AnschMiete)","v":9600},32500,24000,{"$f":"I40+D41-G41-H41","v":-195000},{"$f":"J40+E41-G41-H41","v":-167280},{"$f":"K40+F41-G41","v":-8616}]
[null,null,"Summe",{"$f":"SUM(D36:D41)","v":144000},{"$f":"SUM(E36:E41)","v":171720},{"$f":"SUM(F36:F41)","v":186384}]
[]
[null,null,"Kommentar:"]
[]
[null,null,null,"Aus der Sicht der Liquiditätsbelastung ist der Kreditkauf die günstigste Variante, da immer die Summe aus"]
[null,null,null,"Nutzen und Abschreibungen Jahr für Jahr größer als der jähliche Kapitaldienst ist."]
[null,null,null,"Aber: Nach 2 \"Durstjahren\" wird der Liquiditätsüberschuss beim Barkauf zunehmend besser und führt"]
[null,null,null,"in der Endsumme zum größten Überschuss. Problem: Das Geld für den Barkauf muss da sein!"]
[null,null,null,"Leasing ist - im Falle fehlender Mittel für den Barkauf bzw. ohne Kreditgewährung - ein gangbarer Ausweg. "]
[null,null,null,"Aber: Leasing ist teuer! Und am Ende der Nutzungszeit geht das Leasinggut anderen Leasinggeber zurück!"]

{"sheet":"Blanko1","index":9,"n_rows":0,"n_cols":0,"rows_kept":0,"cut":false,"hidden":true,"merged":[]}